Workbook

Sheet Traffic Survey Parameters
A1: Traffic Census & Subgrade Parameters | G1: =AND(G2:G3,G8:G19) -> FALSE
A2: Work | G2: =Work<>"" -> FALSE
A3: Program | D3: Work_ID | G3: =AND(Program<>"",Work_ID<>"") -> FALSE
A4: T | B4: Average Daily Traffic of a vehicle in given Category during Lean Season
A5: AADT | B5: Average Annual Daily Traffic over Lean &Harvesting Seasons
A6: N0 | B6: ESALs (Equivalent Standard Axel Loads at the Start of Design Period)
A7: N | B7: Cum_ESALs (Cumulative Applications of Equivalent Standard Axels over design period)
A8: CBR | B8: California Bearing Ratio of Subgrade (%) | F8: 5 | G8: =CBR_Subgrade<>"" -> TRUE
A9: S | B9: Season(s) during which Traffic Count Taken | F9: Lean | G9: =Census_Season<>"" -> TRUE
A10: L | B10: No of Lanes | F10: Single | G10: =Lanes<>"" -> TRUE
A11: l | B11: Lane Distribution Factor for the Given Lane Construction | F11: =IF(F10="Two",0.75,1) -> 1 | G11: =Lane_Distribution_Factor<>"" -> TRUE
A12: H | B12: No of Harvesting Seasons | F12: 2 | G12: =Harvest_Seasons<>"" -> TRUE
A13: n | B13: Coefficient for enhnaced Average Daily traffic during peak harvesting season over Lean Season [In case Traffic Census is taken during one season (Lean/Peak Harvesting) only] | F13: 1 | G13: =IF(AND(F9<>"Both",F13=""),FALSE,TRUE) -> TRUE
A14: O | B14: Assumed Percentage of Over-Loading in Overladen vehicles | F14: 0.2 | G14: =Over_Loading<>"" -> TRUE
A15: t | B15: Duration of each Harvesting Season (Days) | F15: 75 | G15: =Harvest_Period<>"" -> TRUE
A16: p | B16: Proportion of Peak Harvesting Period over total harvesting period | F16: 0.2 | G16: =Peak_Duration<>"" -> TRUE
A17: r | B17: Assumed Rate of Growth of Traffic | F17: 0.06 | G17: =Traffic_Rate<>"" -> TRUE
A18: C | B18: Construction Period (Years) from Traffic Census Year | F18: 2 | G18: =Construction_Period<>"" -> TRUE
A19: P | B19: Design Period of Pavement (Years) | F19: 10 | G19: =Design_Period<>"" -> TRUE
A20: Legend
B21: Data Input Boxes
B22: Data in the adjoining cell(s) is complete & valid
B23: Data in the adjoining cell(s) is incomplete and/or in valid
B24: Additional/Help Comments for the Data Entry in the cell
A25: The App may be refined from time to time. Download the latest app from | F25: https://www.civilapps.in
A26: Demo Video for the App | F26: Demo Video

Sheet Admin Console (hidden)
A1: Feature Request
A2: Incorporate assumed sub base/base and associated thickness while designing pavement composition for upgradation of roads

Sheet Traffic Census (hidden)
A1: ="Name of the Work: " & Work -> Name of the Work:
A2: ="Traffic Count Taken in Both Directions of the Road during " & Census_Season & " Season" -> Traffic Count Taken in Both Directions of the Road during Lean Season
A3: S.No | B3: Vehicle | C3: CV Category | D3: Axel Type | E3: Laden Condition | F3: Vehicle/ Axel/ Laden | G3: Lean Seson | K3: Harvest Seson | O3: ADT | Q3: n | R3: AADT
G4: Day1 | H4: Day2 | I4: Day3 | J4: Average | K4: Day1 | L4: Day2 | M4: Day3 | N4: Average | O4: Lean Season | P4: Harvest Season | T4: Traffic_Filter
A5: 1 | B5: Cycle | C5: None | J5: =ROUNDUP(SUM(G5:I5)/3,0) -> 0 | N5: =ROUNDUP(SUM(K5:M5)/3,0) -> 0 | O5: =IFERROR(IF(Census_Season="Lean",J5,ROUND((K5+L5+M5)/(3*(Coefficient+1)),2)),0) -> 0 | P5: =N5 -> 0 | Q5: =IFERROR(IF(Census_Season="Both",CEILING((P5-O5)/O5,0.1),Coefficient),1) -> 1 | R5: =IFERROR(ROUND(O5*(1+(1+Peak_Duration)*Q5*Harvest_Period*Harvest_Seasons/730),2),0) -> 0 | T5: =J5+N5 -> 0
A6: 2 | B6: Cycle Rickshaw | C6: None | J6: =ROUNDUP(SUM(G6:I6)/3,0) -> 0 | N6: =ROUNDUP(SUM(K6:M6)/3,0) -> 0 | O6: =IFERROR(IF(Census_Season="Lean",J6,ROUND((K6+L6+M6)/(3*(Coefficient+1)),2)),0) -> 0 | P6: =N6 -> 0 | Q6: 1 | R6: 0 | T6: =J6+N6 -> 0
A7: 3 | B7: Animal drawn cart (Pneumatic Tyred) | C7: None | J7: 0 | N7: 0 | O7: 0 | P7: 0 | Q7: 1 | R7: 0 | T7: 0
A8: 4 | B8: Animal drawn cart (Iron rimmed) | C8: None | J8: 0 | N8: 0 | O8: 0 | P8: 0 | Q8: 1 | R8: 0 | T8: 0
A9: 5 | B9: Motor Cycle/Scooter | C9: None | J9: 0 | N9: 0 | O9: 0 | P9: 0 | Q9: 1 | R9: 0 | T9: 0
A10: 6 | B10: Car/Jeep/3W-Auto | C10: LCV | J10: 0 | N10: 0 | O10: 0 | P10: 0 | Q10: 1 | R10: 0 | T10: 0
A11: 7 | B11: Tractor-Trailer | C11: MCV | D11: Single | E11: Laden | F11: =C11&D11&E11 -> MCVSingleLaden | J11: 0 | N11: 0 | O11: 0 | P11: 0 | Q11: 1 | R11: 0 | T11: 0
C12: MCV | D12: Single | E12: Unladen | F12: =C12&D12&E12 -> MCVSingleUnladen | J12: 0 | N12: 0 | O12: 0 | P12: 0 | Q12: 1 | R12: 0 | T12: 0
C13: MCV | D13: Single | E13: Overladen | F13: MCVSingleOverladen | J13: 0 | N13: 0 | O13: 0 | P13: 0 | Q13: 1 | R13: 0 | T13: 0
C14: MCV | D14: Tandem | E14: Laden | F14: MCVTandemLaden | J14: 0 | N14: 0 | O14: 0 | P14: 0 | Q14: 1 | R14: 0 | T14: 0
C15: MCV | D15: Tandem | E15: Unladen | F15: MCVTandemUnladen | J15: 0 | N15: 0 | O15: 0 | P15: 0 | Q15: 1 | R15: 0 | T15: 0
C16: MCV | D16: Tandem | E16: Overladen | F16: MCVTandemOverladen | J16: 0 | N16: 0 | O16: 0 | P16: 0 | Q16: 1 | R16: 0 | T16: 0
A17: 8 | B17: Pickup Van/Mini Bus | C17: MCV | D17: Single | E17: Laden | F17: MCVSingleLaden | J17: 0 | N17: 0 | O17: 0 | P17: 0 | Q17: 1 | R17: 0 | T17: 0
C18: MCV | D18: Single | E18: Unladen | F18: MCVSingleUnladen | J18: 0 | N18: 0 | O18: 0 | P18: 0 | Q18: 1 | R18: 0 | T18: 0
C19: MCV | D19: Single | E19: Overladen | F19: MCVSingleOverladen | J19: 0 | N19: 0 | O19: 0 | P19: 0 | Q19: 1 | R19: 0 | T19: 0
C20: MCV | D20: Tandem | E20: Laden | F20: MCVTandemLaden | J20: 0 | N20: 0 | O20: 0 | P20: 0 | Q20: 1 | R20: 0 | T20: 0
C21: MCV | D21: Tandem | E21: Unladen | F21: MCVTandemUnladen | J21: 0 | N21: 0 | O21: 0 | P21: 0 | Q21: 1 | R21: 0 | T21: 0
C22: MCV | D22: Tandem | E22: Overladen | F22: MCVTandemOverladen | J22: 0 | N22: 0 | O22: 0 | P22: 0 | Q22: 1 | R22: 0 | T22: 0
A23: 9 | B23: Medium Truck | C23: MCV | D23: Single | E23: Laden | F23: MCVSingleLaden | J23: 0 | N23: 0 | O23: 0 | P23: 0 | Q23: 1 | R23: 0 | T23: 0
C24: MCV | D24: Single | E24: Unladen | F24: MCVSingleUnladen | J24: 0 | N24: 0 | O24: 0 | P24: 0 | Q24: 1 | R24: 0 | T24: 0
C25: MCV | D25: Single | E25: Overladen | F25: MCVSingleOverladen | J25: 0 | N25: 0 | O25: 0 | P25: 0 | Q25: 1 | R25: 0 | T25: 0
C26: MCV | D26: Tandem | E26: Laden | F26: MCVTandemLaden | J26: 0 | N26: 0 | O26: 0 | P26: 0 | Q26: 1 | R26: 0 | T26: 0
C27: MCV | D27: Tandem | E27: Unladen | F27: MCVTandemUnladen | J27: 0 | N27: 0 | O27: 0 | P27: 0 | Q27: 1 | R27: 0 | T27: 0
C28: MCV | D28: Tandem | E28: Overladen | F28: MCVTandemOverladen | J28: 0 | N28: 0 | O28: 0 | P28: 0 | Q28: 1 | R28: 0 | T28: 0
A29: 10 | B29: Full-Sized Bus | C29: HCV | D29: Single | E29: Laden | F29: HCVSingleLaden | J29: 0 | N29: 0 | O29: 0 | P29: 0 | Q29: 1 | R29: 0 | T29: 0
C30: HCV | D30: Single | E30: Unladen | F30: HCVSingleUnladen | J30: 0 | N30: 0 | O30: 0 | P30: 0 | Q30: 1 | R30: 0 | T30: 0
C31: HCV | D31: Single | E31: Overladen | F31: HCVSingleOverladen | J31: 0 | N31: 0 | O31: 0 | P31: 0 | Q31: 1 | R31: 0 | T31: 0
C32: HCV | D32: Tandem | E32: Laden | F32: HCVTandemLaden | J32: 0 | N32: 0 | O32: 0 | P32: 0 | Q32: 1 | R32: 0 | T32: 0
C33: HCV | D33: Tandem | E33: Unladen | F33: HCVTandemUnladen | J33: 0 | N33: 0 | O33: 0 | P33: 0 | Q33: 1 | R33: 0 | T33: 0
C34: HCV | D34: Tandem | E34: Overladen | F34: HCVTandemOverladen | J34: 0 | N34: 0 | O34: 0 | P34: 0 | Q34: 1 | R34: 0 | T34: 0
A35: 11 | B35: Heavy Truck | C35: HCV | D35: Single | E35: Laden | F35: HCVSingleLaden | J35: 0 | N35: 0 | O35: 0 | P35: 0 | Q35: 1 | R35: 0 | T35: 0
C36: HCV | D36: Single | E36: Unladen | F36: HCVSingleUnladen | J36: 0 | N36: 0 | O36: 0 | P36: 0 | Q36: 1 | R36: 0 | T36: 0
C37: HCV | D37: Single | E37: Overladen | F37: HCVSingleOverladen | J37: 0 | N37: 0 | O37: 0 | P37: 0 | Q37: 1 | R37: 0 | T37: 0
C38: HCV | D38: Tandem | E38: Laden | F38: HCVTandemLaden | J38: 0 | N38: 0 | O38: 0 | P38: 0 | Q38: 1 | R38: 0 | T38: 0
C39: HCV | D39: Tandem | E39: Unladen | F39: HCVTandemUnladen | J39: 0 | N39: 0 | O39: 0 | P39: 0 | Q39: 1 | R39: 0 | T39: 0
C40: HCV | D40: Tandem | E40: Overladen | F40: HCVTandemOverladen | J40: 0 | N40: 0 | O40: 0 | P40: 0 | Q40: 1 | R40: 0 | T40: 0
D41: ADT/AADT (All Vehicles) | J41: =SUM(J5:J40) -> 0 | N41: =SUM(N5:N40) -> 0 | O41: =SUM(O5:O40) -> 0 | P41: =SUM(P5:P40) -> 0 | R41: =SUM(R5:R40) -> 0
B43: AADTi = Average Annual Daily Traffic of a given vehicle category (Census)=
B45: Average Annual Daily Traffic for ALL Vehicle Categories (Census)= | R45: =R41 -> 0
A47: AADT0 = Average Annual Daily Traffic for ALL Vehicle Categories (Start of Design Period)= (1 + Traffic Growth Rate)Construction Period = | R47: =ROUND(R45*(1+Traffic_Rate)^Construction_Period,0) -> 0

Sheet Design ESAL Calculations (hidden)
A1: ="Name of the Work: " & Work -> Name of the Work:
A2: S.No | B2: Commercial Vehicle Category | C2: Vehicle | D2: Rear Axel Type | E2: Laden Condition | F2: Load (kN) | I2: VDF | J2: Lean Season | N2: Peak Harvesting Season | R2: T | S2: n | T2: AADT | V2: N0
F3: Total | G3: Front Axel | H3: Rear Axel | J3: Day1 | K3: Day2 | L3: Day3 | M3: Average | N3: Day1 | O3: Day2 | P3: Day3 | Q3: Average | T3: Census# | U3: Design*
A4: 1 | B4: MCV | C4: Tractor-Trailer/ Pickup Van/ Mini Bus/ Medium Truck | D4: Single | E4: Laden | F4: =G4+H4 -> 88.2 | G4: 29.4 | H4: 58.8 | I4: =CEILING((G4/80)^4+(H4/IF(D4="Single",80,148))^4,0.01) -> 0.32 | J4: =SUMIF(OFFSET(CV_Range,0,0,,1),$B4&$D4&$E4,OFFSET(CV_Range,0,1,,1)) -> 0 | K4: =SUMIF(OFFSET(CV_Range,0,0,,1),$B4&$D4&$E4,OFFSET(CV_Range,0,2,,1)) -> 0 | L4: =SUMIF(OFFSET(CV_Range,0,0,,1),$B4&$D4&$E4,OFFSET(CV_Range,0,3,,1)) -> 0 | M4: =ROUND((J4+K4+L4)/3,2) -> 0 | N4: =SUMIF(OFFSET(CV_Range,0,0,,1),$B4&$D4&$E4,OFFSET(CV_Range,0,5,,1)) -> 0 | O4: =SUMIF(OFFSET(CV_Range,0,0,,1),$B4&$D4&$E4,OFFSET(CV_Range,0,6,,1)) -> 0 | P4: =SUMIF(OFFSET(CV_Range,0,0,,1),$B4&$D4&$E4,OFFSET(CV_Range,0,7,,1)) -> 0 | Q4: =ROUND((N4+O4+P4)/3,2) -> 0 | R4: =IFERROR(IF(Census_Season="Lean",M4,ROUND((N4+O4+P4)/(3*(Coefficient+1)),2)),0) -> 0 | S4: =IFERROR(IF(Census_Season="Both",CEILING((Q4-M4)/M4,0.1),Coefficient),1) -> 1 | T4: =IFERROR(ROUND(R4*(1+(1+Peak_Duration)*S4*Harvest_Period*Harvest_Seasons/730),2),0) -> 0 | U4: =T4*(1+Traffic_Rate)^Construction_Period -> 0 | V4: =IFERROR(ROUND(I4*U4,2),0) -> 0
B5: MCV | D5: Single | E5: Unladen | F5: 44.1 | G5: 14.7 | H5: 29.4 | I5: 0.02 | J5: 0 | K5: 0 | L5: 0 | M5: 0 | N5: 0 | O5: 0 | P5: 0 | Q5: =ROUND((N5+O5+P5)/3,2) -> 0 | R5: 0 | S5: =IFERROR(IF(Census_Season="Both",CEILING((Q5-M5)/M5,0.1),Coefficient),1) -> 1 | T5: =IFERROR(ROUND(R5*(1+(1+Peak_Duration)*S5*Harvest_Period*Harvest_Seasons/730),2),0) -> 0 | U5: 0 | V5: 0
B6: MCV | D6: Single | E6: Overladen | F6: =ROUND(F4*(1+Over_Loading),1) -> 105.8 | G6: =ROUND(G4*(1+Over_Loading),1) -> 35.3 | H6: =ROUND(H4*(1+Over_Loading),1) -> 70.6 | I6: 0.65 | J6: 0 | K6: 0 | L6: 0 | M6: 0 | N6: 0 | O6: 0 | P6: 0 | Q6: 0 | R6: 0 | S6: 1 | T6: 0 | U6: 0 | V6: 0
B7: MCV | D7: Tandem | E7: Laden | F7: 88.2 | G7: 29.4 | H7: 58.8 | I7: 0.05 | J7: 0 | K7: 0 | L7: 0 | M7: 0 | N7: 0 | O7: 0 | P7: 0 | Q7: 0 | R7: 0 | S7: 1 | T7: 0 | U7: 0 | V7: 0
B8: MCV | D8: Tandem | E8: Unladen | F8: 44.1 | G8: 14.7 | H8: 29.4 | I8: 0.01 | J8: 0 | K8: 0 | L8: 0 | M8: 0 | N8: 0 | O8: 0 | P8: 0 | Q8: 0 | R8: 0 | S8: 1 | T8: 0 | U8: 0 | V8: 0
B9: MCV | D9: Tandem | E9: Overladen | F9: =ROUND(F7*(1+Over_Loading),1) -> 105.8 | G9: =ROUND(G7*(1+Over_Loading),1) -> 35.3 | H9: =ROUND(H7*(1+Over_Loading),1) -> 70.6 | I9: 0.09 | J9: 0 | K9: 0 | L9: 0 | M9: 0 | N9: 0 | O9: 0 | P9: 0 | Q9: 0 | R9: 0 | S9: 1 | T9: 0 | U9: 0 | V9: 0
A10: 2 | B10: HCV | C10: Full-Sized Bus/Heavy Truck | D10: Single | E10: Laden | F10: 149.1 | G10: 49.1 | H10: 100 | I10: 2.59 | J10: 0 | K10: 0 | L10: 0 | M10: 0 | N10: 0 | O10: 0 | P10: 0 | Q10: 0 | R10: 0 | S10: 1 | T10: 0 | U10: 0 | V10: 0
B11: HCV | D11: Single | E11: Unladen | F11: 88.2 | G11: 29.4 | H11: 58.8 | I11: 0.32 | J11: 0 | K11: 0 | L11: 0 | M11: 0 | N11: 0 | O11: 0 | P11: 0 | Q11: 0 | R11: 0 | S11: 1 | T11: 0 | U11: 0 | V11: 0
B12: HCV | D12: Single | E12: Overladen | F12: =ROUND(F10*(1+Over_Loading),1) -> 178.9 | G12: =ROUND(G10*(1+Over_Loading),1) -> 58.9 | H12: =ROUND(H10*(1+Over_Loading),1) -> 120 | I12: 5.36 | J12: 0 | K12: 0 | L12: 0 | M12: 0 | N12: 0 | O12: 0 | P12: 0 | Q12: 0 | R12: 0 | S12: 1 | T12: 0 | U12: 0 | V12: 0
B13: HCV | D13: Tandem | E13: Laden | F13: 235.4 | G13: 58.8 | H13: 176.6 | I13: 2.32 | J13: 0 | K13: 0 | L13: 0 | M13: 0 | N13: 0 | O13: 0 | P13: 0 | Q13: 0 | R13: 0 | S13: 1 | T13: 0 | U13: 0 | V13: 0
B14: HCV | D14: Tandem | E14: Unladen | F14: 117.7 | G14: =ROUND(G13/2,1) -> 29.4 | H14: =ROUND(H13/2,1) -> 88.3 | I14: 0.15 | J14: 0 | K14: 0 | L14: 0 | M14: 0 | N14: 0 | O14: 0 | P14: 0 | Q14: 0 | R14: 0 | S14: 1 | T14: 0 | U14: 0 | V14: 0
B15: HCV | D15: Tandem | E15: Overladen | F15: =ROUND(F13*(1+Over_Loading),1) -> 282.5 | G15: =ROUND(G13*(1+Over_Loading),1) -> 70.6 | H15: =ROUND(H13*(1+Over_Loading),1) -> 211.9 | I15: 4.81 | J15: 0 | K15: 0 | L15: 0 | M15: 0 | N15: 0 | O15: 0 | P15: 0 | Q15: 0 | R15: 0 | S15: 1 | T15: 0 | U15: 0 | V15: 0
A16: Design Summary | H16: Cumulative Application of ESAL/Day for all Commercial Vehicles | V16: =SUM(V4:V15) -> 0
A17: ="Traffic Category for Cumulative ESAL Applications of '" &E27 & "' Over design Period =" -> Traffic Category for Cumulative ESAL Applications of '0' Over design Period =
D18: =VLOOKUP(E27,Traffic_Categories,2,TRUE) -> T1
C19: Sub Grade CBR= | D19: =CBR_Subgrade -> 5 | F19: #AADT = Average Annual Daily Traffic of a given vehicle category =
C20: Sub Grade Class= | D20: =CBR_Class(CBR_Subgrade) -> S3
F21: *AADT = Average Annual Daily Traffic at the start of design period = | T21: #AADT (1+r)C
D22: N0 = ESALs (Equivalent Standard Axel Loads) at the start of design Period = | T22: *AADT X VDF
A24: N=Cumulative Application of ESALs over Design Period =
B25: =" = 365 x Lane_Distribution_Factor x Initial ESALs x (((1 + Traffic_Rate)^ Design_Period) - 1)/ Traffic_Rate" -> = 365 x Lane_Distribution_Factor x Initial ESALs x (((1 + Traffic_Rate)^ Design_Period) - 1)/ Traffic_Rate
B26: =" = 365 x "& Lane_Distribution_Factor & " x " & $V$16 & " x (((1 + " & Traffic_Rate & ")^" & Design_Period & ") - 1)/" & Traffic_Rate -> = 365 x 1 x 0 x (((1 + 0.06)^10) - 1)/0.06 | D26: =" = 365 x "& Lane_Distribution_Factor & " x " & $V$16 & " x ((" & (1 + Traffic_Rate) & "^" & Design_Period & ") - 1)/" & Traffic_Rate -> = 365 x 1 x 0 x ((1.06^10) - 1)/0.06 | H26: =" = 365 x "& Lane_Distribution_Factor & " x " & $V$16 & " x ((" & ROUND((1 + Traffic_Rate) ^ Design_Period,3) & ") - 1)/" & Traffic_Rate -> = 365 x 1 x 0 x ((1.791) - 1)/0.06 | T26: =" = 365 x "& Lane_Distribution_Factor & " x " & $V$16 & " x " & ROUND((( (1 + Traffic_Rate) ^ Design_Period - 1)),3)&" /" & Traffic_Rate -> = 365 x 1 x 0 x 0.791 /0.06
B27: =" = 365 x "& Lane_Distribution_Factor & " x " & $V$16 & " x " &ROUND( (( (1 + Traffic_Rate) ^ Design_Period - 1)) / Traffic_Rate,3) -> = 365 x 1 x 0 x 13.181 | D27: ="=" -> = | E27: =ROUND(365*Lane_Distribution_Factor*V16*(((1+Traffic_Rate)^(Design_Period))-1)/Traffic_Rate,0) -> 0 | H27: =IF(Design_ESAL>2000000,"Flexible pavement can not be designed if cumulative design ESALs exceed 2 MSA under IRC SP-72. The design has to be done as per IRC-37","") -> 

Sheet Pavement Composition (hidden)
A1: Design Pavement Composition for | D1: Sub-Bases/Bases
A2: Name of the Work
A3: =Work -> 0
A4: ="Design of Pavement Composition for Subgrade class " & Subgrade_Class & " and Traffic Category " & Traffic_Category & " for " &SubBases_Bases & " Sub-Bases and Bases" -> Design of Pavement Composition for Subgrade class S3 and Traffic Category T1 for Sub-Bases and Bases
A6: SxTy | B6: Layer | C6: Thickness (mm) | D6: Legend
A7: S1T1 | B7: Gravel Base | C7: 200 | D7: :
A8: S1T1 | B8: Improved Subgrade | C8: 100 | D8: *
A9: S1T2 | B9: BT Surface Course | D9: _
A10: S1T2 | B10: Granular Base | C10: 75 | D10: |
A11: S1T2 | B11: Gravel Base | C11: 150 | D11: :
A12: S1T2 | B12: Improved Subgrade | C12: 100 | D12: *
A13: S1T3 | B13: BT Surface Course | D13: _
A14: S1T3 | B14: Granular Base | C14: 150 | D14: |
A15: S1T3 | B15: Granular Sub Base | C15: 125 | D15: `
A16: S1T3 | B16: Improved Subgrade | C16: 100 | D16: *
A17: S1T4 | B17: BT Surface Course | D17: _
A18: S1T4 | B18: Gravel Base | C18: 150 | D18: :
A19: S1T4 | B19: Granular Sub Base | C19: 125 | D19: `
A20: S1T4 | B20: Improved Subgrade | C20: 150 | D20: *
A21: S1T5 | B21: BT Surface Course | D21: _
A22: S1T5 | B22: Gravel Base | C22: 150 | D22: :
A23: S1T5 | B23: Granular Sub Base | C23: 175 | D23: `
A24: S1T5 | B24: Improved Subgrade | C24: 150 | D24: *
A25: S1T6 | B25: BT Surface Course | D25: _
A26: S1T6 | B26: Granular Base | C26: 150 | D26: |
A27: S1T6 | B27: Granular Sub Base | C27: 250 | D27: `
A28: S1T6 | B28: Improved Subgrade | C28: 150 | D28: *
A29: S1T7 | B29: BT Surface Course | D29: _
A30: S1T7 | B30: Granular Base | C30: 225 | D30: |
A31: S1T7 | B31: Granular Sub Base | C31: 200 | D31: `
A32: S1T7 | B32: Improved Subgrade | C32: 225 | D32: *
A33: S1T8 | B33: BT Surface Course | D33: _
A34: S1T8 | B34: Granular Base | C34: 225 | D34: |
A35: S1T8 | B35: Granular Sub Base | C35: 225 | D35: `
A36: S1T8 | B36: Improved Subgrade | C36: 200 | D36: *
A37: S1T9 | B37: BT Surface Course | D37: _
A38: S1T9 | B38: Bituminous Macadam | C38: 50 | D38: .
A39: S1T9 | B39: Granular Base | C39: 225 | D39: |
A40: S1T9 | B40: Granular Sub Base | C40: 250 | D40: `
A41: S1T9 | B41: Improved Subgrade | C41: 200 | D41: *
A42: S2T1 | B42: Gravel Base | C42: 200 | D42: :
A43: S2T2 | B43: Gravel Base | C43: 275 | D43: :
A44: S2T3 | B44: BT Surface Course | D44: _
A45: S2T3 | B45: Granular Base | C45: 150 | D45: |
A46: S2T3 | B46: Granular Sub Base | C46: 175 | D46: `
A47: S2T4 | B47: BT Surface Course | D47: _
A48: S2T4 | B48: Granular Base | C48: 150 | D48: |
A49: S2T4 | B49: Granular Sub Base | C49: 125 | D49: `
A50: S2T4 | B50: Improved Subgrade | C50: 100 | D50: *
A51: S2T5 | B51: BT Surface Course | D51: _
A52: S2T5 | B52: Granular Base | C52: 150 | D52: |
A53: S2T5 | B53: Granular Sub Base | C53: 125 | D53: `
A54: S2T5 | B54: Improved Subgrade | C54: 150 | D54: *
A55: S2T6 | B55: BT Surface Course | D55: _
A56: S2T6 | B56: Granular Base | C56: 225 | D56: |
A57: S2T6 | B57: Granular Sub Base | C57: 100 | D57: `
A58: S2T6 | B58: Improved Subgrade | C58: 150 | D58: *
A59: S2T7 | B59: BT Surface Course | D59: _
A60: S2T7 | B60: Granular Base | C60: 225 | D60: |
A61: S2T7 | B61: Granular Sub Base | C61: 150 | D61: `
A62: S2T7 | B62: Improved Subgrade | C62: 150 | D62: *
A63: S2T8 | B63: BT Surface Course | D63: _
A64: S2T8 | B64: Granular Base | C64: 225 | D64: |
A65: S2T8 | B65: Granular Sub Base | C65: 150 | D65: `
A66: S2T8 | B66: Improved Subgrade | C66: 200 | D66: *
A67: S2T9 | B67: BT Surface Course | D67: _
A68: S2T9 | B68: Bituminous Macadam | C68: 50 | D68: .
A69: S2T9 | B69: Granular Base | C69: 225 | D69: |
A70: S2T9 | B70: Granular Sub Base | C70: 200 | D70: `
A71: S2T9 | B71: Improved Subgrade | C71: 100 | D71: *
A72: S3T1 | B72: Gravel Base | C72: 175 | D72: :
A73: S3T2 | B73: Gravel Base | C73: 250 | D73: :
A74: S3T3 | B74: Gravel Base | C74: 275 | D74: :
A75: S3T4 | B75: BT Surface Course | D75: _
A76: S3T4 | B76: Granular Base | C76: 150 | D76: |
A77: S3T4 | B77: Granular Sub Base | C77: 150 | D77: `
A78: S3T5 | B78: BT Surface Course | D78: _
A79: S3T5 | B79: Granular Base | C79: 150 | D79: |
A80: S3T5 | B80: Granular Sub Base | C80: 175 | D80: `
A81: S3T6 | B81: BT Surface Course | D81: _
A82: S3T6 | B82: Granular Base | C82: 150 | D82: |
A83: S3T6 | B83: Granular Sub Base | C83: 125 | D83: `
A84: S3T6 | B84: Improved Subgrade | C84: 100 | D84: *
A85: S3T7 | B85: BT Surface Course | D85: _
A86: S3T7 | B86: Granular Base | C86: 225 | D86: |
A87: S3T7 | B87: Granular Sub Base | C87: 100 | D87: `
A88: S3T7 | B88: Improved Subgrade | C88: 100 | D88: *
A89: S3T8 | B89: BT Surface Course | D89: _
A90: S3T8 | B90: Granular Base | C90: 225 | D90: |
A91: S3T8 | B91: Granular Sub Base | C91: 200 | D91: `
A92: S3T8 | B92: Improved Subgrade | C92: 100 | D92: *
A93: S3T9 | B93: BT Surface Course | D93: _
A94: S3T9 | B94: Bituminous Macadam | C94: 50 | D94: .
A95: S3T9 | B95: Granular Base | C95: 225 | D95: |
A96: S3T9 | B96: Granular Sub Base | C96: 200 | D96: `
A97: S4T1 | B97: Gravel Base | C97: 150 | D97: :
A98: S4T2 | B98: Gravel Base | C98: 175 | D98: :
A99: S4T3 | B99: Gravel Base | C99: 225 | D99: :
A100: S4T4 | B100: BT Surface Course | D100: _
A101: S4T4 | B101: Granular Base | C101: 150 | D101: |
A102: S4T4 | B102: Granular Sub Base | C102: 125 | D102: `
A103: S4T5 | B103: BT Surface Course | D103: _
A104: S4T5 | B104: Granular Base | C104: 150 | D104: |
A105: S4T5 | B105: Granular Sub Base | C105: 150 | D105: `
A106: S4T6 | B106: BT Surface Course | D106: _
A107: S4T6 | B107: Granular Base | C107: 150 | D107: |
A108: S4T6 | B108: Granular Sub Base | C108: 175 | D108: `
A109: S4T7 | B109: BT Surface Course | D109: _
A110: S4T7 | B110: Granular Base | C110: 225 | D110: |
A111: S4T7 | B111: Granular Sub Base | C111: 150 | D111: `
A112: S4T8 | B112: BT Surface Course | D112: _
A113: S4T8 | B113: Granular Base | C113: 225 | D113: |
A114: S4T8 | B114: Granular Sub Base | C114: 200 | D114: `
A115: S4T9 | B115: BT Surface Course | D115: _
A116: S4T9 | B116: Bituminous Macadam | C116: 50 | D116: .
A117: S4T9 | B117: Granular Base | C117: 225 | D117: |
A118: S4T9 | B118: Granular Sub Base | C118: 150 | D118: `
A119: S5T1 | B119: Gravel Base | C119: 125 | D119: :
A120: S5T2 | B120: Gravel Base | C120: 150 | D120: :
A121: S5T3 | B121: Gravel Base | C121: 175 | D121: :
A122: S5T4 | B122: BT Surface Course | D122: _
A123: S5T4 | B123: Granular Base | C123: 75 | D123: |
A124: S5T4 | B124: Granular Sub Base | C124: 150 | D124: `
A125: S5T5 | B125: BT Surface Course | D125: _
A126: S5T5 | B126: Granular Base | C126: 150 | D126: |
A127: S5T5 | B127: Granular Sub Base | C127: 125 | D127: `
A128: S5T6 | B128: BT Surface Course | D128: _
A129: S5T6 | B129: Granular Base | C129: 150 | D129: |
A130: S5T6 | B130: Granular Sub Base | C130: 150 | D130: `
A131: S5T7 | B131: BT Surface Course | D131: _
A132: S5T7 | B132: Granular Base | C132: 225 | D132: |
A133: S5T7 | B133: Granular Sub Base | C133: 125 | D133: `
A134: S5T8 | B134: BT Surface Course | D134: _
A135: S5T8 | B135: Granular Base | C135: 150 | D135: |
A136: S5T8 | B136: Granular Sub Base | C136: 175 | D136: `
A137: S5T9 | B137: BT Surface Course | D137: _
A138: S5T9 | B138: Bituminous Macadam | C138: 50 | D138: .
A139: S5T9 | B139: Granular Base | C139: 225 | D139: |
A140: S5T9 | B140: Granular Sub Base | C140: 125 | D140: `
A142: LEGEND for Conventional Gravel/Granular Sub-Bases/Bases
A143: CBR | B143: Layer | C143: Remarks | D143: Legend
B144: BT Surface Course | C144: MSS/OGPC/MSS/SDBC
B145: Bituminous Macadam | D145: .
A146: ≥ 100 | B146: Granular Base | C146: WBM/WMM/CRBM | D146: |
A147: ≥ 80/50 | B147: Gravel Base | D147: :
A148: ≥ 20/15 | B148: Granular Sub Base | D148: `
A149: ≥ 10 | B149: Improved Subgrade | C149: Modified/Select Soil | D149: *
A151: SiTj | B151: Layer | C151: Thickness (mm) | D151: Legend
A152: S1T1 | B152: Surface Dressing | D152: -
A153: S1T1 | B153: Cement Treated Base | C153: 150 | D153: |
A154: S1T1 | B154: Cement Treated Sub Base | C154: 100 | D154: `
A155: S1T2 | B155: Surface Dressing | D155: -
A156: S1T2 | B156: Cement Treated Base | C156: 150 | D156: |
A157: S1T2 | B157: Cement Treated Sub Base | C157: 110 | D157: `
A158: S1T3 | B158: Surface Dressing | D158: -
A159: S1T3 | B159: Cement Treated Base | C159: 150 | D159: |
A160: S1T3 | B160: Cement Treated Sub Base | C160: 120 | D160: `
A161: S1T4 | B161: Surface Dressing | D161: -
A162: S1T4 | B162: Cement Treated Base | C162: 150 | D162: |
A163: S1T4 | B163: Cement Treated Sub Base | C163: 125 | D163: `
A164: S1T5 | B164: Surface Dressing | D164: -
A165: S1T5 | B165: Cement Treated Base | C165: 150 | D165: |
A166: S1T5 | B166: Cement Treated Sub Base | C166: 130 | D166: `
A167: S1T6 | B167: BT Carpet | D167: _
A168: S1T6 | B168: Crack Relief Layer | C168: 75 | D168: ,
A169: S1T6 | B169: Cement Treated Base | C169: 150 | D169: |
A170: S1T6 | B170: Cement Treated Sub Base | C170: 125 | D170: `
A171: S1T7 | B171: BT Carpet | D171: _
A172: S1T7 | B172: Crack Relief Layer | C172: 125 | D172: ,
A173: S1T7 | B173: Cement Treated Base | C173: 150 | D173: |
A174: S1T7 | B174: Cement Treated Sub Base | C174: 100 | D174: `
A175: S1T8 | B175: BT Carpet | D175: _
A176: S1T8 | B176: Crack Relief Layer | C176: 125 | D176: ,
A177: S1T8 | B177: Cement Treated Base | C177: 150 | D177: |
A178: S1T8 | B178: Cement Treated Sub Base | C178: 125 | D178: `
A179: S1T9 | B179: BT Carpet | D179: _
A180: S1T9 | B180: Bituminous Macadam | C180: 50 | D180: .
A181: S1T9 | B181: Crack Relief Layer | C181: 75 | D181: ,
A182: S1T9 | B182: Cement Treated Base | C182: 150 | D182: |
A183: S1T9 | B183: Cement Treated Sub Base | C183: 125 | D183: `
A184: S2T1 | B184: Surface Dressing | D184: -
A185: S2T1 | B185: Cement Treated Base | C185: 100 | D185: |
A186: S2T1 | B186: Cement Treated Sub Base | C186: 100 | D186: `
A187: S2T2 | B187: Surface Dressing | D187: -
A188: S2T2 | B188: Cement Treated Base | C188: 100 | D188: |
A189: S2T2 | B189: Cement Treated Sub Base | C189: 100 | D189: `
A190: S2T3 | B190: Surface Dressing | D190: -
A191: S2T3 | B191: Cement Treated Base | C191: 100 | D191: |
A192: S2T3 | B192: Cement Treated Sub Base | C192: 125 | D192: `
A193: S2T4 | B193: Surface Dressing | D193: -
A194: S2T4 | B194: Cement Treated Base | C194: 100 | D194: |
A195: S2T4 | B195: Cement Treated Sub Base | C195: 125 | D195: `
A196: S2T5 | B196: Surface Dressing | D196: -
A197: S2T5 | B197: Cement Treated Base | C197: 100 | D197: |
A198: S2T5 | B198: Cement Treated Sub Base | C198: 150 | D198: `
A199: S2T6 | B199: BT Carpet | D199: _
A200: S2T6 | B200: Crack Relief Layer | C200: 75 | D200: ,
A201: S2T6 | B201: Cement Treated Base | C201: 125 | D201: |
A202: S2T6 | B202: Cement Treated Sub Base | C202: 100 | D202: `
A203: S2T7 | B203: BT Carpet | D203: _
... 111 more rows

Sheet Database (hidden)
A1: Cumulative ESAL Applications | B1: Traffic Category
A2: 0 | B2: T1
A3: 30000 | B3: T2
A4: 60000 | B4: T3
A5: 100000 | B5: T4
A6: 200000 | B6: T5
A7: 300000 | B7: T6
A8: 600000 | B8: T7
A9: 1000000 | B9: T8
A10: 1500000 | B10: T9
A11: 2000000 | B11: Non-Rural Traffic Category
